Workbook

Sheet Input Data
A1: Public Lighting Quantity Inputs | B1: Units | C1: 2020-21 | D1: 2021-22 | E1: 2022-23 | F1: 2023-24 | G1: 2024-25
A3: Opening Population Public Lights
A5: NPL1 (Energex Owned & Operated)
A6: Major Conventional | B6: # | C6: 25772.38037 | D6: 24015.2646 | E6: 21637.78571 | F6: 18772.52778 | G6: 15443.97118
A7: Minor Conventional | B7: # | C7: 66186.18741 | D7: 61596.28066 | E7: 55446.2925 | F7: 48106.41772 | G7: 39608.88124
A8: Major LED | B8: # | C8: 169.6196308 | D8: 2086.735404 | E8: 4634.214286 | F8: 7669.472219 | G8: 11178.02882
A9: Minor LED | B9: # | C9: 419.8125866 | D9: 5164.719338 | E9: 11489.7075 | F9: 19034.58228 | G9: 27757.11876
A10: Total | B10: # | C10: =SUM(C6:C9) -> 92548 | D10: =SUM(D6:D9) -> 92863 | E10: =SUM(E6:E9) -> 93208 | F10: =SUM(F6:F9) -> 93583 | G10: =SUM(G6:G9) -> 93988
A12: NPL2 (Gifted & Energex Operated)
A13: Major Conventional | B13: # | C13: 15599.46378 | D13: 14598.41279 | E13: 13231.36448 | F13: 11590.01346 | G13: 9682.188372
A14: Minor Conventional | B14: # | C14: 41292.96844 | D14: 38593.60152 | E14: 34975.57549 | F14: 30666.42498 | G14: 25695.91076
A15: Major LED | B15: # | C15: 119.5362185 | D15: 1470.587207 | E15: 3187.635519 | F15: 5178.986535 | G15: 7436.811628
A16: Minor LED | B16: # | C16: 291.0315642 | D16: 3580.398481 | E16: 7788.424506 | F16: 12687.57502 | G16: 18248.08924
A17: Total | B17: # | C17: =SUM(C13:C16) -> 57303 | D17: =SUM(D13:D16) -> 58243 | E17: =SUM(E13:E16) -> 59183 | F17: =SUM(F13:F16) -> 60123 | G17: =SUM(G13:G16) -> 61063
A18: Total Opening Lights | B18: # | C18: =SUM(C10,C17) -> 149851 | D18: =SUM(D10,D17) -> 151106 | E18: =SUM(E10,E17) -> 152391 | F18: =SUM(F10,F17) -> 153706 | G18: =SUM(G10,G17) -> 155051
A20: Public Lights Additions by Type
A22: NPL1 (Energex Owned & Operated)
A23: Major Conventional | B23: # | C23: 0 | D23: 0 | E23: 0 | F23: 0 | G23: 0
A24: Minor Conventional | B24: # | C24: 0 | D24: 0 | E24: 0 | F24: 0 | G24: 0
A25: Major LED | B25: # | C25: 2086.735404 | D25: 2547.478882 | E25: 3035.257933 | F25: 3508.556597 | G25: 4009.859676
A26: Minor LED | B26: # | C26: 5164.719338 | D26: 6324.988161 | E26: 7544.874779 | F26: 8722.536482 | G26: 10015.05028
A27: Total | B27: # | C27: =SUM(C23:C26) -> 7251.454742 | D27: =SUM(D23:D26) -> 8872.467043 | E27: =SUM(E23:E26) -> 10580.13271 | F27: =SUM(F23:F26) -> 12231.09308 | G27: =SUM(G23:G26) -> 14024.90996
A29: NPL2 (Gifted & Energex Operated)
A30: Major Conventional | B30: # | C30: 0 | D30: 0 | E30: 0 | F30: 0 | G30: 0
A31: Minor Conventional | B31: # | C31: 0 | D31: 0 | E31: 0 | F31: 0 | G31: 0
A32: Major LED | B32: # | C32: 1470.587207 | D32: 1717.048312 | E32: 1991.351016 | F32: 2257.825093 | G32: 2552.909333
A33: Minor LED | B33: # | C33: 3580.398481 | D33: 4208.026025 | E33: 4899.150517 | F33: 5560.514213 | G33: 6334.91879
A34: Total | B34: # | C34: =SUM(C30:C33) -> 5050.985688 | D34: =SUM(D30:D33) -> 5925.074337 | E34: =SUM(E30:E33) -> 6890.501533 | F34: =SUM(F30:F33) -> 7818.339306 | G34: =SUM(G30:G33) -> 8887.828123
A35: Total Additions | B35: # | C35: =SUM(C27,C34) -> 12302.44043 | D35: =SUM(D27,D34) -> 14797.54138 | E35: =SUM(E27,E34) -> 17470.63425 | F35: =SUM(F27,F34) -> 20049.43238 | G35: =SUM(G27,G34) -> 22912.73808
A37: Public Lights Disposals by Type
A39: NPL1 (Energex Owned & Operated)
A40: Major Conventional | B40: # | C40: 1926.735404 | D40: 2377.478882 | E40: 2865.257933 | F40: 3328.556597 | G40: 3819.859676
A41: Minor Conventional | B41: # | C41: 5009.719338 | D41: 6149.988161 | E41: 7339.874779 | F41: 8497.536482 | G41: 9770.050284
A42: Major LED | B42: # | C42: 0 | D42: 0 | E42: 0 | F42: 0 | G42: 0
A43: Minor LED | B43: # | C43: 0 | D43: 0 | E43: 0 | F43: 0 | G43: 0
A44: Total | B44: # | C44: =SUM(C40:C43) -> 6936.454742 | D44: =SUM(D40:D43) -> 8527.467043 | E44: =SUM(E40:E43) -> 10205.13271 | F44: =SUM(F40:F43) -> 11826.09308 | G44: =SUM(G40:G43) -> 13589.90996
A46: NPL2 (Gifted & Energex Operated)
A47: Major Conventional (SV) | B47: # | C47: 1120.587207 | D47: 1367.048312 | E47: 1641.351016 | F47: 1907.825093 | G47: 2202.909333
A48: Minor Conventional (SV) | B48: # | C48: 2990.398481 | D48: 3618.026025 | E48: 4309.150517 | F48: 4970.514213 | G48: 5744.91879
A49: Major LED | B49: # | C49: 0 | D49: 0 | E49: 0 | F49: 0 | G49: 0
A50: Minor LED | B50: # | C50: 0 | D50: 0 | E50: 0 | F50: 0 | G50: 0
A51: Total | B51: # | C51: =SUM(C47:C50) -> 4110.985688 | D51: =SUM(D47:D50) -> 4985.074337 | E51: =SUM(E47:E50) -> 5950.501533 | F51: =SUM(F47:F50) -> 6878.339306 | G51: =SUM(G47:G50) -> 7947.828123
A52: Total Disposals | B52: # | C52: =SUM(C44,C51) -> 11047.44043 | D52: =SUM(D44,D51) -> 13512.54138 | E52: =SUM(E44,E51) -> 16155.63425 | F52: =SUM(F44,F51) -> 18704.43238 | G52: =SUM(G44,G51) -> 21537.73808
A54: Closing Population Public Lights
A56: NPL1 (Energex Owned & Operated)
A57: Major Conventional | B57: # | C57: =C6+C23-C40 -> 23845.64497 | D57: =D6+D23-D40 -> 21637.78571 | E57: 18772.52778 | F57: 15443.97118 | G57: 11624.11151
A58: Minor Conventional | B58: # | C58: =C7+C24-C41 -> 61176.46808 | D58: 55446.2925 | E58: 48106.41772 | F58: 39608.88124 | G58: 29838.83096
A59: Major LED | B59: # | C59: =C8+C25-C42 -> 2256.355035 | D59: 4634.214286 | E59: 7669.472219 | F59: 11178.02882 | G59: 15187.88849
A60: Minor LED | B60: # | C60: =C9+C26-C43 -> 5584.531925 | D60: 11489.7075 | E60: 19034.58228 | F60: 27757.11876 | G60: 37772.16904
A61: Total | B61: # | C61: =SUM(C57:C60) -> 92863 | D61: =SUM(D57:D60) -> 93208 | E61: =SUM(E57:E60) -> 93583 | F61: =SUM(F57:F60) -> 93988 | G61: =SUM(G57:G60) -> 94423
A63: NPL2 (Gifted & Energex Operated)
A64: Major Conventional | B64: # | C64: =C13+C30-C47 -> 14478.87657 | D64: =D13+D30-D47 -> 13231.36448 | E64: 11590.01346 | F64: 9682.188372 | G64: 7479.279039
A65: Minor Conventional | B65: # | C65: =C14+C31-C48 -> 38302.56995 | D65: 34975.57549 | E65: 30666.42498 | F65: 25695.91076 | G65: 19950.99197
A66: Major LED | B66: # | C66: =C15+C32-C49 -> 1590.123426 | D66: 3187.635519 | E66: 5178.986535 | F66: 7436.811628 | G66: 9989.720961
A67: Minor LED | B67: # | C67: =C16+C33-C50 -> 3871.430046 | D67: 7788.424506 | E67: 12687.57502 | F67: 18248.08924 | G67: 24583.00803
A68: Total | B68: # | C68: =SUM(C64:C67) -> 58243 | D68: =SUM(D64:D67) -> 59183 | E68: =SUM(E64:E67) -> 60123 | F68: =SUM(F64:F67) -> 61063 | G68: =SUM(G64:G67) -> 62003
A69: Total Closing Lights | B69: # | C69: =SUM(C61,C68) -> 151106 | D69: =SUM(D61,D68) -> 152391 | E69: =SUM(E61,E68) -> 153706 | F69: =SUM(F61,F68) -> 155051 | G69: =SUM(G61,G68) -> 156426
A71: Public Lights Contributed Assets
A73: Contributed Assets (Conventional)
A74: Gifted | B74: $M Nominal | C74: 0.5760215086 | D74: 0.5881905368 | E74: 0.5630005601 | F74: 0.577027374 | G74: 0.5271145235
A75: Cash Contribution | B75: $M Nominal | C75: 0 | D75: 0 | E75: 0 | F75: 0 | G75: 0
A76: Total Contributed | B76: $M Nominal | C76: =SUM(C74:C75) -> 0.5760215086 | D76: =SUM(D74:D75) -> 0.5881905368 | E76: 0.5630005601 | F76: 0.577027374 | G76: 0.5271145235
A78: Contributed Assets (LED)
A79: Gifted | B79: $M Nominal | C79: 7.07647737 | D79: 7.682478507 | E79: 8.376948568 | F79: 9.070130122 | G79: 9.875198968
A80: Cash Contribution | B80: $M Nominal | C80: 0 | D80: 0 | E80: 0 | F80: 0 | G80: 0
A81: Total Contributed | B81: $M Nominal | C81: =SUM(C79:C80) -> 7.07647737 | D81: =SUM(D79:D80) -> 7.682478507 | E81: =SUM(E79:E80) -> 8.376948568 | F81: =SUM(F79:F80) -> 9.070130122 | G81: =SUM(G79:G80) -> 9.875198968
A83: Pricing Allocators
A84: Proportion of asset base related to refurbishment | B84: % | C84: 0.1
A85: Relativity Major to Minor
A86: Opex + tax | B86: # | C86: 1.5
A87: Asset charge | B87: # | C87: 1.8
A89: Price Smoothing Inputs
A90: Expected CPI | B90: % | C90: 0.02449889904
A91: Discount rate for smoothing | B91: % | C91: 0.04866862747 | D91: 0.04757614403 | E91: 0.04648366058 | F91: 0.04539117714 | G91: 0.04429869369
A92: X factor | B92: % | C92: 0
A93: Z factor Conventional | B93: % | C93: 0.09378268491
A94: Z factor LED | B94: % | C94: -0.4698528066
A96: % of PLAB associated with Poles, cabling and some residual brackets | B96: % | C96: 0.7

Sheet Public Lighting Pricing
A1: Public Lighting Price Calculations | B1: Units | C1: ='Input Data'!C1 -> 2020-21 | D1: ='Input Data'!D1 -> 2021-22 | E1: ='Input Data'!E1 -> 2022-23 | F1: ='Input Data'!F1 -> 2023-24 | G1: ='Input Data'!G1 -> 2024-25 | J1: =C1 -> 2020-21 | K1: =D1 -> 2021-22 | L1: 2022-23 | M1: 2023-24 | N1: 2024-25
A3: Building Block Revenue - Linked to PL PTRM
A5: Opex Charge
A6: O&M Conventional | B6: $M Nominal | C6: 11.23382631 | D6: 10.56783719 | E6: 9.533658714 | F6: 8.195909386 | G6: 6.505383686
A7: O&M LED | B7: $M Nominal | C7: 0.2089912421 | D7: 0.3994321364 | E7: 0.6031869813 | F7: 0.8788825168 | G7: 1.198863097
A8: Carry-over amounts Conventional | B8: $M Nominal | C8: 0 | D8: 0 | E8: 0 | F8: 0 | G8: 0
A9: Carry-over amounts LED | B9: $M Nominal | C9: 0 | D9: 0 | E9: 0 | F9: 0 | G9: 0
A10: Benchmark Tax liability Conventional | B10: $M Nominal | C10: 0 | D10: 0 | E10: 0 | F10: 0 | G10: 0
A11: Benchmark Tax liability LED | B11: $M Nominal | C11: 0.7111409895 | D11: 0.5206561784 | E11: 0.3858257115 | F11: 0.2714137281 | G11: 0.1618326843
A12: Total Benchmark Tax liability | B12: $M Nominal | C12: =SUM(C10:C11) -> 0.7111409895 | D12: =SUM(D10:D11) -> 0.5206561784 | E12: 0.3858257115 | F12: 0.2714137281 | G12: 0.1618326843
A13: Total Benchmark Tax Liability allocation - Conventional | B13: % | C13: =C10/C12 -> 0 | D13: =D10/D12 -> 0 | E13: 0 | F13: 0 | G13: 0
A14: Total Benchmark Tax Liability allocation - LED | B14: % | C14: =1-C13 -> 1 | D14: =1-D13 -> 1 | E14: 1 | F14: 1 | G14: 1
A15: Allocated Benchmark Tax liability Conventional | B15: $M Nominal | C15: =C$12*C13 -> 0 | D15: =D$12*D13 -> 0 | E15: =E$12*E13 -> 0 | F15: =F$12*F13 -> 0 | G15: =G$12*G13 -> 0
A16: Tax liability attributable to O&M Revenue | B16: $M Nominal | C16: 0 | D16: 0 | E16: 0 | F16: 0 | G16: 0
A17: Tax liability attributable to Capex Revenue | B17: $M Nominal | C17: 0 | D17: 0 | E17: 0 | F17: 0 | G17: 0
A18: Tax liability attributable to Gifted Assets | B18: $M Nominal | C18: =C$15*'Input Data'!C74/'Input Data'!C$76 -> 0 | D18: =D$15*'Input Data'!D74/'Input Data'!D$76 -> 0 | E18: =E$15*'Input Data'!E74/'Input Data'!E$76 -> 0 | F18: =F$15*'Input Data'!F74/'Input Data'!F$76 -> 0 | G18: =G$15*'Input Data'!G74/'Input Data'!G$76 -> 0
A19: Tax liability attributable to Contributed Assets | B19: $M Nominal | C19: =C$15*'Input Data'!C75/'Input Data'!C$76 -> 0 | D19: =D$15*'Input Data'!D75/'Input Data'!D$76 -> 0 | E19: =E$15*'Input Data'!E75/'Input Data'!E$76 -> 0 | F19: =F$15*'Input Data'!F75/'Input Data'!F$76 -> 0 | G19: =G$15*'Input Data'!G75/'Input Data'!G$76 -> 0
A20: Allocated Benchmark Tax liability LED | B20: $M Nominal | C20: =C$12*C14 -> 0.7111409895 | D20: =D$12*D14 -> 0.5206561784 | E20: =E$12*E14 -> 0.3858257115 | F20: =F$12*F14 -> 0.2714137281 | G20: =G$12*G14 -> 0.1618326843
A21: Tax liability attributable to O&M Revenue | B21: $M Nominal | C21: 0 | D21: 0 | E21: 0 | F21: 0 | G21: 0
A22: Tax liability attributable to Capex Revenue | B22: $M Nominal | C22: 0 | D22: 0 | E22: 0 | F22: 0 | G22: 0
A23: Tax liability attributable to Gifted Assets | B23: $M Nominal | C23: =C$20*'Input Data'!C79/'Input Data'!C$81 -> 0.7111409895 | D23: =D$20*'Input Data'!D79/'Input Data'!D$81 -> 0.5206561784 | E23: =E$20*'Input Data'!E79/'Input Data'!E$81 -> 0.3858257115 | F23: =F$20*'Input Data'!F79/'Input Data'!F$81 -> 0.2714137281 | G23: =G$20*'Input Data'!G79/'Input Data'!G$81 -> 0.1618326843
A24: Tax liability attributable to Contributed Assets | B24: $M Nominal | C24: =C$20*'Input Data'!C80/'Input Data'!C$81 -> 0 | D24: =D$20*'Input Data'!D80/'Input Data'!D$81 -> 0 | E24: =E$20*'Input Data'!E80/'Input Data'!E$81 -> 0 | F24: =F$20*'Input Data'!F80/'Input Data'!F$81 -> 0 | G24: =G$20*'Input Data'!G80/'Input Data'!G$81 -> 0
A25: Tax Liability allocated to opex - Conventional | B25: % | C25: =IF(C30=1,C6/SUM(C6,C31,C32),1) -> 0.4760681859 | D25: =IF(D30=1,D6/SUM(D6,D31,D32),1) -> 0.4604156013 | E25: =IF(E30=1,E6/SUM(E6,E31,E32),1) -> 0.4342256114 | F25: =IF(F30=1,F6/SUM(F6,F31,F32),1) -> 0.3966958833 | G25: =IF(G30=1,G6/SUM(G6,G31,G32),1) -> 0.3494645843
A26: Tax Liability allocated to opex - LED | B26: % | C26: =IF(C30=1,C7/SUM(C7,C35,C36),1) -> 0.724832534 | D26: =IF(D30=1,D7/SUM(D7,D35,D36),1) -> 0.3038240046 | E26: =IF(E30=1,E7/SUM(E7,E35,E36),1) -> 0.243037549 | F26: =IF(F30=1,F7/SUM(F7,F35,F36),1) -> 0.2288986868 | G26: =IF(G30=1,G7/SUM(G7,G35,G36),1) -> 0.2245908034
A27: Total Opex Charge Conventional | B27: $M Nominal | C27: =SUM(C6,C8,C16,SUM(C18,C19)*C25) -> 11.23382631 | D27: =SUM(D6,D8,D16,SUM(D18,D19)*D25) -> 10.56783719 | E27: =SUM(E6,E8,E16,SUM(E18,E19)*E25) -> 9.533658714 | F27: =SUM(F6,F8,F16,SUM(F18,F19)*F25) -> 8.195909386 | G27: =SUM(G6,G8,G16,SUM(G18,G19)*G25) -> 6.505383686
A28: Total Opex Charge LED | B28: $M Nominal | C28: =SUM(C7,C9,C21,SUM(C23,C24)*C26) -> 0.7244493676 | D28: =SUM(D7,D9,D21,SUM(D23,D24)*D26) -> 0.5576199816 | E28: =SUM(E7,E9,E21,SUM(E23,E24)*E26) -> 0.6969571166 | F28: =SUM(F7,F9,F21,SUM(F23,F24)*F26) -> 0.9410087628 | G28: =SUM(G7,G9,G21,SUM(G23,G24)*G26) -> 1.23520923
A30: Capex Charge Conventional | B30: NPL4 Switch | C30: 1 | D30: 1 | E30: 1 | F30: 1 | G30: 1
A31: Return on capital | B31: $M Nominal | C31: 5.208323516 | D31: 4.782919704 | E31: 4.353109877 | F31: 3.914689818 | G31: 3.47019531
A32: Return of capital | B32: $M Nominal | C32: 7.154945389 | D32: 7.602064776 | E32: 8.068773558 | F32: 8.549835479 | G32: 8.639708441
A33: Total Capex Charge Conventional | B33: $M Nominal | C33: =SUM(C31,C32,C17,SUM(C18,C19)*(1-C25))*C30 -> 12.36326891 | D33: =SUM(D31,D32,D17,SUM(D18,D19)*(1-D25))*D30 -> 12.38498448 | E33: =SUM(E31,E32,E17,SUM(E18,E19)*(1-E25))*E30 -> 12.42188344 | F33: =SUM(F31,F32,F17,SUM(F18,F19)*(1-F25))*F30 -> 12.4645253 | G33: =SUM(G31,G32,G17,SUM(G18,G19)*(1-G25))*G30 -> 12.10990375
A34: Capex Charge LED
A35: Return on capital | B35: $M Nominal | C35: 0.03342351577 | D35: 0.4496347438 | E35: 0.8991995915 | F35: 1.389940493 | G35: 1.899386382
A36: Return of capital | B36: $M Nominal | C36: 0.04591562511 | D36: 0.4656157333 | E36: 0.9794808748 | F36: 1.570790617 | G36: 2.239738894
A37: Total Capex Charge LED | B37: $M Nominal | C37: =SUM(C35,C36,C22,SUM(C23,C24)*(1-C26))*C30 -> 0.275022005 | D37: =SUM(D35,D36,D22,SUM(D23,D24)*(1-D26))*D30 -> 1.27771881 | E37: =SUM(E35,E36,E22,SUM(E23,E24)*(1-E26))*E30 -> 2.170736043 | F37: =SUM(F35,F36,F22,SUM(F23,F24)*(1-F26))*F30 -> 3.170018592 | G37: =SUM(G35,G36,G22,SUM(G23,G24)*(1-G26))*G30 -> 4.264611827
A39: ARR for Conventional | B39: $M Nominal | C39: =SUM(C27,C33) -> 23.59709522 | D39: =SUM(D27,D33) -> 22.95282167 | E39: 21.95554215 | F39: 20.66043468 | G39: 18.61528744
A40: ARR for LED | B40: $M Nominal | C40: =SUM(C28,C37) -> 0.9994713726 | D40: =SUM(D28,D37) -> 1.835338792 | E40: 2.867693159 | F40: 4.111027354 | G40: 5.499821057
A41: ARR for Total | B41: $M Nominal | C41: =SUM(C39:C40) -> 24.59656659 | D41: =SUM(D39:D40) -> 24.78816046 | E41: 24.82323531 | F41: 24.77146204 | G41: 24.11510849
A43: Opex and Capex Charge Components
A44: Opex Charge for Conventional Lights | B44: $M Nominal | C44: =C27 -> 11.23382631 | D44: =D27 -> 10.56783719 | E44: 9.533658714 | F44: 8.195909386 | G44: 6.505383686
A45: Opex Charge for LED | B45: $M Nominal | C45: =C28 -> 0.7244493676 | D45: =D28 -> 0.5576199816 | E45: 0.6969571166 | F45: 0.9410087628 | G45: 1.23520923
A46: Capex Charge for Conventional Lights | B46: $M Nominal | C46: =C33 -> 12.36326891 | D46: =D33 -> 12.38498448 | E46: 12.42188344 | F46: 12.4645253 | G46: 12.10990375
A47: Capex Charge for LED | B47: $M Nominal | C47: =C37 -> 0.275022005 | D47: =D37 -> 1.27771881 | E47: 2.170736043 | F47: 3.170018592 | G47: 4.264611827
A49: Public Lights Population
A51: Average No of Lights by Tariff
A52: NPL1 (Energex Owned & Operated)
A53: Major Conventional | B53: # | C53: =SUM('Input Data'!C6,'Input Data'!C57)/2 -> 24809.01267 | D53: =SUM('Input Data'!D6,'Input Data'!D57)/2 -> 22826.52516 | E53: =SUM('Input Data'!E6,'Input Data'!E57)/2 -> 20205.15675 | F53: =SUM('Input Data'!F6,'Input Data'!F57)/2 -> 17108.24948 | G53: =SUM('Input Data'!G6,'Input Data'!G57)/2 -> 13534.04135
A54: Minor Conventional | B54: # | C54: =SUM('Input Data'!C7,'Input Data'!C58)/2 -> 63681.32774 | D54: =SUM('Input Data'!D7,'Input Data'!D58)/2 -> 58521.28658 | E54: =SUM('Input Data'!E7,'Input Data'!E58)/2 -> 51776.35511 | F54: =SUM('Input Data'!F7,'Input Data'!F58)/2 -> 43857.64948 | G54: =SUM('Input Data'!G7,'Input Data'!G58)/2 -> 34723.8561
A55: Major LED | B55: # | C55: =SUM('Input Data'!C8,'Input Data'!C59)/2 -> 1212.987333 | D55: =SUM('Input Data'!D8,'Input Data'!D59)/2 -> 3360.474845 | E55: =SUM('Input Data'!E8,'Input Data'!E59)/2 -> 6151.843252 | F55: =SUM('Input Data'!F8,'Input Data'!F59)/2 -> 9423.750517 | G55: =SUM('Input Data'!G8,'Input Data'!G59)/2 -> 13182.95865
A56: Minor LED | B56: # | C56: =SUM('Input Data'!C9,'Input Data'!C60)/2 -> 3002.172256 | D56: =SUM('Input Data'!D9,'Input Data'!D60)/2 -> 8327.213419 | E56: =SUM('Input Data'!E9,'Input Data'!E60)/2 -> 15262.14489 | F56: =SUM('Input Data'!F9,'Input Data'!F60)/2 -> 23395.85052 | G56: =SUM('Input Data'!G9,'Input Data'!G60)/2 -> 32764.6439
A57: Total | B57: # | C57: =SUM(C53:C56) -> 92705.5 | D57: =SUM(D53:D56) -> 93035.5 | E57: =SUM(E53:E56) -> 93395.5 | F57: =SUM(F53:F56) -> 93785.5 | G57: =SUM(G53:G56) -> 94205.5
A59: NPL2 (Gifted & Energex Operated)
A60: Major Conventional | B60: # | C60: =SUM('Input Data'!C13,'Input Data'!C64)/2 -> 15039.17018 | D60: =SUM('Input Data'!D13,'Input Data'!D64)/2 -> 13914.88864 | E60: =SUM('Input Data'!E13,'Input Data'!E64)/2 -> 12410.68897 | F60: =SUM('Input Data'!F13,'Input Data'!F64)/2 -> 10636.10092 | G60: =SUM('Input Data'!G13,'Input Data'!G64)/2 -> 8580.733706
A61: Minor Conventional | B61: # | C61: =SUM('Input Data'!C14,'Input Data'!C65)/2 -> 39797.7692 | D61: =SUM('Input Data'!D14,'Input Data'!D65)/2 -> 36784.58851 | E61: =SUM('Input Data'!E14,'Input Data'!E65)/2 -> 32821.00023 | F61: =SUM('Input Data'!F14,'Input Data'!F65)/2 -> 28181.16787 | G61: =SUM('Input Data'!G14,'Input Data'!G65)/2 -> 22823.45137
A62: Major LED | B62: # | C62: =SUM('Input Data'!C15,'Input Data'!C66)/2 -> 854.829822 | D62: =SUM('Input Data'!D15,'Input Data'!D66)/2 -> 2329.111363 | E62: =SUM('Input Data'!E15,'Input Data'!E66)/2 -> 4183.311027 | F62: =SUM('Input Data'!F15,'Input Data'!F66)/2 -> 6307.899081 | G62: =SUM('Input Data'!G15,'Input Data'!G66)/2 -> 8713.266294
A63: Minor LED | B63: # | C63: =SUM('Input Data'!C16,'Input Data'!C67)/2 -> 2081.230805 | D63: =SUM('Input Data'!D16,'Input Data'!D67)/2 -> 5684.411494 | E63: =SUM('Input Data'!E16,'Input Data'!E67)/2 -> 10237.99977 | F63: =SUM('Input Data'!F16,'Input Data'!F67)/2 -> 15467.83213 | G63: =SUM('Input Data'!G16,'Input Data'!G67)/2 -> 21415.54863
A64: Total | B64: # | C64: =SUM(C60:C63) -> 57773 | D64: =SUM(D60:D63) -> 58713 | E64: =SUM(E60:E63) -> 59653 | F64: =SUM(F60:F63) -> 60593 | G64: =SUM(G60:G63) -> 61533
A65: Grand total | B65: # | C65: =SUM(C57,C64) -> 150478.5 | D65: =SUM(D57,D64) -> 151748.5 | E65: 153048.5 | F65: 154378.5 | G65: 155738.5
A67: Average No of Lights by Type
A68: Major Conventional | B68: # | C68: =SUM(C53,C60) -> 39848.18285 | D68: =SUM(D53,D60) -> 36741.41379 | E68: 32615.84572 | F68: 27744.3504 | G68: 22114.77505
A69: Minor Conventional | B69: # | C69: =SUM(C54,C61) -> 103479.0969 | D69: 95305.87509 | E69: 84597.35535 | F69: 72038.81735 | G69: 57547.30747
A70: Major LED | B70: # | C70: =SUM(C55,C62) -> 2067.817155 | D70: 5689.586208 | E70: 10335.15428 | F70: 15731.6496 | G70: 21896.22495
A71: Minor LED | B71: # | C71: =SUM(C56,C63) -> 5083.40306 | D71: 14011.62491 | E71: 25500.14465 | F71: 38863.68265 | G71: 54180.19253
A72: Total | B72: # | C72: =SUM(C68:C71) -> 150478.5 | D72: =SUM(D68:D71) -> 151748.5 | E72: =SUM(E68:E71) -> 153048.5 | F72: =SUM(F68:F71) -> 154378.5 | G72: =SUM(G68:G71) -> 155738.5
A74: Price Components
A76: Opex Charge
A77: NPL1 (Energex Owned & Operated)
A78: Major Conventional | B78: $/day/light Nominal | C78: =C44*10^6/(C68+C69/'Input Data'!$C$86) -> 103.2195892 | D78: =D44*10^6/(D68+D69/'Input Data'!$C$86) -> 105.3847029 | E78: =E44*10^6/(E68+E69/'Input Data'!$C$86) -> 107.1028138 | F78: =F44*10^6/(F68+F69/'Input Data'!$C$86) -> 108.1679379 | G78: =G44*10^6/(G68+G69/'Input Data'!$C$86) -> 107.5631893
A79: Minor Conventional | B79: $/day/light Nominal | C79: =C78/'Input Data'!$C$86 -> 68.81305945 | D79: =D78/'Input Data'!$C$86 -> 70.25646857 | E79: =E78/'Input Data'!$C$86 -> 71.40187585 | F79: =F78/'Input Data'!$C$86 -> 72.1119586 | G79: =G78/'Input Data'!$C$86 -> 71.70879287
A80: Major LED | B80: $/day/light Nominal | C80: =C45*10^6/(C70+C71/'Input Data'!$C$86) -> 132.7619979 | D80: =D45*10^6/(D70+D71/'Input Data'!$C$86) -> 37.09881201 | E80: =E45*10^6/(E70+E71/'Input Data'!$C$86) -> 25.49664255 | F80: =F45*10^6/(F70+F71/'Input Data'!$C$86) -> 22.59825483 | G80: =G45*10^6/(G70+G71/'Input Data'!$C$86) -> 21.29070787
A81: Minor LED | B81: $/day/light Nominal | C81: =C80/'Input Data'!$C$86 -> 88.50799858 | D81: =D80/'Input Data'!$C$86 -> 24.73254134 | E81: =E80/'Input Data'!$C$86 -> 16.9977617 | F81: =F80/'Input Data'!$C$86 -> 15.06550322 | G81: =G80/'Input Data'!$C$86 -> 14.19380525
A83: NPL2 (Gifted & Energex Operated)
A84: Major Conventional | B84: $/day/light Nominal | C84: =C78 -> 103.2195892 | D84: =D78 -> 105.3847029 | E84: 107.1028138 | F84: 108.1679379 | G84: 107.5631893
A85: Minor Conventional | B85: $/day/light Nominal | C85: =C79 -> 68.81305945 | D85: 70.25646857 | E85: 71.40187585 | F85: 72.1119586 | G85: 71.70879287
A86: Major LED | B86: $/day/light Nominal | C86: =C80 -> 132.7619979 | D86: 37.09881201 | E86: 25.49664255 | F86: 22.59825483 | G86: 21.29070787
A87: Minor LED | B87: $/day/light Nominal | C87: =C81 -> 88.50799858 | D87: 24.73254134 | E87: 16.9977617 | F87: 15.06550322 | G87: 14.19380525
A89: Capex Charge
A90: NPL1 (Energex Owned & Operated)
A91: Major Conventional | B91: $/day/light Nominal | C91: =C46*10^6/(C53+C54/'Input Data'!$C$87)*(1-'Input Data'!$C$84) -> 184.8712245 | D91: =D46*10^6/(D53+D54/'Input Data'!$C$87)*(1-'Input Data'!$C$84) -> 201.4242532 | E91: =E46*10^6/(E53+E54/'Input Data'!$C$87)*(1-'Input Data'!$C$84) -> 228.2977558 | F91: =F46*10^6/(F53+F54/'Input Data'!$C$87)*(1-'Input Data'!$C$84) -> 270.4870081 | G91: =G46*10^6/(G53+G54/'Input Data'!$C$87)*(1-'Input Data'!$C$84) -> 332.0301386
A92: Minor Conventional | B92: $/day/light Nominal | C92: =C91/'Input Data'!$C$87 -> 102.7062358 | D92: =D91/'Input Data'!$C$87 -> 111.9023629 | E92: =E91/'Input Data'!$C$87 -> 126.8320865 | F92: =F91/'Input Data'!$C$87 -> 150.2705601 | G92: =G91/'Input Data'!$C$87 -> 184.4611881
A93: Major LED | B93: $/day/light Nominal | C93: =C47*10^6/(C55+C56/'Input Data'!$C$87)*(1-'Input Data'!$C$84) -> 85.91869617 | D93: =D47*10^6/(D55+D56/'Input Data'!$C$87)*(1-'Input Data'!$C$84) -> 143.9826559 | E93: =E47*10^6/(E55+E56/'Input Data'!$C$87)*(1-'Input Data'!$C$84) -> 133.5306853 | F93: =F47*10^6/(F55+F56/'Input Data'!$C$87)*(1-'Input Data'!$C$84) -> 127.2449969 | G93: =G47*10^6/(G55+G56/'Input Data'!$C$87)*(1-'Input Data'!$C$84) -> 122.2904183
A94: Minor LED | B94: $/day/light Nominal | C94: =C93/'Input Data'!$C$87 -> 47.73260898 | D94: =D93/'Input Data'!$C$87 -> 79.99036441 | E94: =E93/'Input Data'!$C$87 -> 74.18371408 | F94: =F93/'Input Data'!$C$87 -> 70.69166497 | G94: =G93/'Input Data'!$C$87 -> 67.93912129
A96: NPL2 (Gifted & Energex Operated)
A97: Major Conventional | B97: $/day/light Nominal | C97: 0 | D97: 0 | E97: 0 | F97: 0 | G97: 0
A98: Minor Conventional | B98: $/day/light Nominal | C98: 0 | D98: 0 | E98: 0 | F98: 0 | G98: 0
A99: Major LED | B99: $/day/light Nominal | C99: 0 | D99: 0 | E99: 0 | F99: 0 | G99: 0
A100: Minor LED | B100: $/day/light Nominal | C100: 0 | D100: 0 | E100: 0 | F100: 0 | G100: 0
A102: Refurbishment Charge
A103: NPL1 (Energex Owned & Operated)
A104: Major Conventional | B104: $/day/light Nominal | C104: =C46*10^6/(C68+C69/'Input Data'!$C$87)*'Input Data'!$C$84 -> 12.70156623 | D104: =D46*10^6/(D68+D69/'Input Data'!$C$87)*'Input Data'!$C$84 -> 13.80879217 | E104: =E46*10^6/(E68+E69/'Input Data'!$C$87)*'Input Data'!$C$84 -> 15.60256324 | F104: =F46*10^6/(F68+F69/'Input Data'!$C$87)*'Input Data'!$C$84 -> 18.39350238 | G104: =G46*10^6/(G68+G69/'Input Data'!$C$87)*'Input Data'!$C$84 -> 22.3902958
A105: Minor Conventional | B105: $/day/light Nominal | C105: =C104/'Input Data'!$C$87 -> 7.056425681 | D105: =D104/'Input Data'!$C$87 -> 7.671551205 | E105: =E104/'Input Data'!$C$87 -> 8.668090688 | F105: =F104/'Input Data'!$C$87 -> 10.21861243 | G105: =G104/'Input Data'!$C$87 -> 12.43905322
A106: Major LED | B106: $/day/light Nominal | C106: =C47*10^6/(C70+C71/'Input Data'!$C$87)*'Input Data'!$C$84 -> 5.62195303 | D106: =D47*10^6/(D70+D71/'Input Data'!$C$87)*'Input Data'!$C$84 -> 9.482972127 | E106: =E47*10^6/(E70+E71/'Input Data'!$C$87)*'Input Data'!$C$84 -> 8.859459579 | F106: =F47*10^6/(F70+F71/'Input Data'!$C$87)*'Input Data'!$C$84 -> 8.493566676 | G106: =G47*10^6/(G70+G71/'Input Data'!$C$87)*'Input Data'!$C$84 -> 8.201755144
A107: Minor LED | B107: $/day/light Nominal | C107: =C106/'Input Data'!$C$87 -> 3.123307239 | D107: =D106/'Input Data'!$C$87 -> 5.268317848 | E107: =E106/'Input Data'!$C$87 -> 4.921921988 | F107: =F106/'Input Data'!$C$87 -> 4.718648153 | G107: =G106/'Input Data'!$C$87 -> 4.556530636
A109: NPL2 (Gifted & Energex Operated)
A110: Major Conventional | B110: $/day/light Nominal | C110: =C104 -> 12.70156623 | D110: =D104 -> 13.80879217 | E110: 15.60256324 | F110: 18.39350238 | G110: 22.3902958
A111: Minor Conventional | B111: $/day/light Nominal | C111: =C105 -> 7.056425681 | D111: 7.671551205 | E111: 8.668090688 | F111: 10.21861243 | G111: 12.43905322
A112: Major LED | B112: $/day/light Nominal | C112: =C106 -> 5.62195303 | D112: 9.482972127 | E112: 8.859459579 | F112: 8.493566676 | G112: 8.201755144
A113: Minor LED | B113: $/day/light Nominal | C113: =C107 -> 3.123307239 | D113: 5.268317848 | E113: 4.921921988 | F113: 4.718648153 | G113: 4.556530636
B115: 2020-06-30 | C115: =EOMONTH(B115,12) -> 2021-06-30 | D115: =EOMONTH(C115,12) -> 2022-06-30 | E115: 2023-06-30 | F115: 2024-06-30 | G115: 2025-06-30
A116: Pricing Days in Year | B116: # | C116: =C115-B115 -> 365 | D116: =D115-C115 -> 365 | E116: =E115-D115 -> 365 | F116: =F115-E115 -> 366 | G116: =G115-F115 -> 365
A119: Unsmoothed Prices
A121: NPL1 (Energex Owned & Operated)
A122: Major Conventional | B122: $/day/light Nominal | C122: =SUM(C78,C91,C104)/C$116 -> 0.824088712 | D122: =SUM(D78,D91,D104)/D$116 -> 0.8784047897 | E122: 0.9616524186 | F122: 1.084831826 | G122: 1.265708558
A123: Minor Conventional | B123: $/day/light Nominal | C123: =SUM(C79,C92,C105)/C$116 -> 0.4892485506 | D123: =SUM(D79,D92,D105)/D$116 -> 0.5200832402 | E123: 0.5668549399 | F123: 0.6355222161 | G123: 0.7359151622
A124: Major LED | B124: $/day/light Nominal | C124: =SUM(C80,C93,C106)/C$116 -> 0.6145278002 | D124: 0.5220943564 | E124: 0.4599638013 | F124: 0.4326142581 | G124: 0.4158435105
A125: Minor LED | B125: $/day/light Nominal | C125: =SUM(C81,C94,C107)/C$116 -> 0.3818189447 | D125: 0.3013458181 | E125: 0.2632969802 | F125: 0.247201684 | G125: 0.2375053621
A127: NPL2 (Gifted & Energex Operated)
A128: Major Conventional | B128: $/day/light Nominal | C128: =SUM(C84,C97,C110)/C$116 -> 0.3175922066 | D128: =SUM(D84,D97,D110)/D$116 -> 0.3265575206 | E128: 0.3361791151 | F128: 0.3457962849 | G128: 0.3560369455
A129: Minor Conventional | B129: $/day/light Nominal | C129: =SUM(C85,C98,C111)/C$116 -> 0.2078616031 | D129: 0.213501424 | E129: 0.2193697713 | F129: 0.2249469154 | G129: 0.2305420441
A130: Major LED | B130: $/day/light Nominal | C130: =SUM(C86,C99,C112)/C$116 -> 0.3791341121 | D130: 0.1276213264 | E130: 0.09412630721 | F130: 0.08495033199 | G130: 0.08080126854
A131: Minor LED | B131: $/day/light Nominal | C131: =SUM(C87,C100,C113)/C$116 -> 0.2510446735 | D131: 0.08219413476 | E131: 0.06005392792 | F131: 0.0540550584 | G131: 0.05137078324
A133: Smoothed Prices
A135: NPL1 (Energex Owned & Operated)
A136: Major Conventional | B136: $/day/light Nominal | C136: =C122*(1+'Input Data'!$C$93) -> 0.901373964 | D136: =C136*(1-'Input Data'!$C$92)*(1+'Input Data'!$C$90) -> 0.9234566338 | E136: =D136*(1-'Input Data'!$C$92)*(1+'Input Data'!$C$90) -> 0.9460803046 | F136: =E136*(1-'Input Data'!$C$92)*(1+'Input Data'!$C$90) -> 0.9692582305 | G136: =F136*(1-'Input Data'!$C$92)*(1+'Input Data'!$C$90) -> 0.99300399
A137: Minor Conventional | B137: $/day/light Nominal | C137: =C123*(1+'Input Data'!$C$93) -> 0.5351315932 | D137: =C137*(1-'Input Data'!$C$92)*(1+'Input Data'!$C$90) -> 0.5482417281 | E137: =D137*(1-'Input Data'!$C$92)*(1+'Input Data'!$C$90) -> 0.5616730468 | F137: =E137*(1-'Input Data'!$C$92)*(1+'Input Data'!$C$90) -> 0.5754334181 | G137: =F137*(1-'Input Data'!$C$92)*(1+'Input Data'!$C$90) -> 0.5895309033
A138: Major LED | B138: $/day/light Nominal | C138: =C124*(1+'Input Data'!$C$94) -> 0.3257901886 | D138: =C138*(1-'Input Data'!$C$92)*(1+'Input Data'!$C$90) -> 0.3337716895 | E138: =D138*(1-'Input Data'!$C$92)*(1+'Input Data'!$C$90) -> 0.3419487284 | F138: =E138*(1-'Input Data'!$C$92)*(1+'Input Data'!$C$90) -> 0.3503260958 | G138: =F138*(1-'Input Data'!$C$92)*(1+'Input Data'!$C$90) -> 0.3589086994
A139: Minor LED | B139: $/day/light Nominal | C139: =C125*(1+'Input Data'!$C$94) -> 0.2024202419 | D139: =C139*(1-'Input Data'!$C$92)*(1+'Input Data'!$C$90) -> 0.207379315 | E139: =D139*(1-'Input Data'!$C$92)*(1+'Input Data'!$C$90) -> 0.2124598799 | F139: =E139*(1-'Input Data'!$C$92)*(1+'Input Data'!$C$90) -> 0.217664913 | G139: =F139*(1-'Input Data'!$C$92)*(1+'Input Data'!$C$90) -> 0.2229974638
A141: NPL2 (Gifted & Energex Operated)
A142: Major Conventional | B142: $/day/light Nominal | C142: =C128*(1+'Input Data'!$C$93) -> 0.3473768564 | D142: =C142*(1-'Input Data'!$C$92)*(1+'Input Data'!$C$90) -> 0.355887207 | E142: =D142*(1-'Input Data'!$C$92)*(1+'Input Data'!$C$90) -> 0.3646060517 | F142: =E142*(1-'Input Data'!$C$92)*(1+'Input Data'!$C$90) -> 0.3735384986 | G142: =F142*(1-'Input Data'!$C$92)*(1+'Input Data'!$C$90) -> 0.3826897805
A143: Minor Conventional | B143: $/day/light Nominal | C143: =C129*(1+'Input Data'!$C$93) -> 0.2273554223 | D143: =C143*(1-'Input Data'!$C$92)*(1+'Input Data'!$C$90) -> 0.2329253799 | E143: =D143*(1-'Input Data'!$C$92)*(1+'Input Data'!$C$90) -> 0.2386317952 | F143: =E143*(1-'Input Data'!$C$92)*(1+'Input Data'!$C$90) -> 0.2444780115 | G143: =F143*(1-'Input Data'!$C$92)*(1+'Input Data'!$C$90) -> 0.2504674536
A144: Major LED | B144: $/day/light Nominal | C144: =C130*(1+'Input Data'!$C$94) -> 0.2009968854 | D144: =C144*(1-'Input Data'!$C$92)*(1+'Input Data'!$C$90) -> 0.2059210879 | E144: =D144*(1-'Input Data'!$C$92)*(1+'Input Data'!$C$90) -> 0.2109659278 | F144: =E144*(1-'Input Data'!$C$92)*(1+'Input Data'!$C$90) -> 0.2161343608 | G144: =F144*(1-'Input Data'!$C$92)*(1+'Input Data'!$C$90) -> 0.2214294146
A145: Minor LED | B145: $/day/light Nominal | C145: =C131*(1+'Input Data'!$C$94) -> 0.1330906291 | D145: =C145*(1-'Input Data'!$C$92)*(1+'Input Data'!$C$90) -> 0.136351203 | E145: =D145*(1-'Input Data'!$C$92)*(1+'Input Data'!$C$90) -> 0.1396916573 | F145: =E145*(1-'Input Data'!$C$92)*(1+'Input Data'!$C$90) -> 0.1431139491 | G145: =F145*(1-'Input Data'!$C$92)*(1+'Input Data'!$C$90) -> 0.1466200833
A147: Recovered Revenue
A149: Cumulative Discount Rate | C149: =(1+'Input Data'!C91) -> 1.048668627 | D149: =C149*(1+'Input Data'!D91) -> 1.098560237 | E149: =D149*(1+'Input Data'!E91) -> 1.149625338 | F149: =E149*(1+'Input Data'!F91) -> 1.201808186 | G149: =F149*(1+'Input Data'!G91) -> 1.255046718
A151: Recovered revenue Conventional | B151: $M Nominal | C151: =(SUMPRODUCT(C136:C137,C53:C54)+SUMPRODUCT(C142:C143,C60:C61))*C116/10^6 -> 25.81009416 | D151: =(SUMPRODUCT(D136:D137,D53:D54)+SUMPRODUCT(D142:D143,D60:D61))*D116/10^6 -> 24.33940905 | E151: =(SUMPRODUCT(E136:E137,E53:E54)+SUMPRODUCT(E142:E143,E60:E61))*E116/10^6 -> 22.10229413 | F151: =(SUMPRODUCT(F136:F137,F53:F54)+SUMPRODUCT(F142:F143,F60:F61))*F116/10^6 -> 19.28166244 | G151: =(SUMPRODUCT(G136:G137,G53:G54)+SUMPRODUCT(G142:G143,G60:G61))*G116/10^6 -> 15.66230847
A152: NPV of recovered revenue Conventional | B152: $M Nominal | C152: =SUM(C151/C$149,D151/D$149,E151/E$149,F151/F$149,G151/G$149) -> 94.51697341
A153: NPV of revenue requirement Conventional | B153: $M Nominal | C153: =SUM(C39/C$149,D39/D$149,E39/E$149,F39/F$149,G39/G$149) -> 94.51697341
A154: Difference Conventional | B154: $M Nominal | C154: =C152-C153 -> 0
A156: Recovered revenue LED | B156: $M Nominal | C156: =(SUMPRODUCT(C138:C139,C55:C56)+SUMPRODUCT(C144:C145,C62:C63))*C116/10^6 -> 0.5298669431 | D156: =(SUMPRODUCT(D138:D139,D55:D56)+SUMPRODUCT(D144:D145,D62:D63))*D116/10^6 -> 1.497672625 | E156: =(SUMPRODUCT(E138:E139,E55:E56)+SUMPRODUCT(E144:E145,E62:E63))*E116/10^6 -> 2.795501308 | F156: =(SUMPRODUCT(F138:F139,F55:F56)+SUMPRODUCT(F144:F145,F62:F63))*F116/10^6 -> 4.381333944 | G156: =(SUMPRODUCT(G138:G139,G55:G56)+SUMPRODUCT(G144:G145,G62:G63))*G116/10^6 -> 6.244140416
A157: NPV of recovered revenue LED | B157: $M Nominal | C157: =SUM(C156/C$149,D156/D$149,E156/E$149,F156/F$149,G156/G$149) -> 12.92108755
A158: NPV of revenue requirement LED | B158: $M Nominal | C158: =SUM(C40/C$149,D40/D$149,E40/E$149,F40/F$149,G40/G$149) -> 12.92108755
A159: Difference LED | B159: $M Nominal | C159: =C157-C158 -> 0
A162: Check Unsmoothed Prices
A163: Unsmoothed Prices X Volumes - Conventional | C163: =(SUMPRODUCT(C122:C123,C53:C54)+SUMPRODUCT(C128:C129,C60:C61))*C116/10^6 -> 23.59709522 | D163: =(SUMPRODUCT(D122:D123,D53:D54)+SUMPRODUCT(D128:D129,D60:D61))*D116/10^6 -> 22.95282167 | E163: =(SUMPRODUCT(E122:E123,E53:E54)+SUMPRODUCT(E128:E129,E60:E61))*E116/10^6 -> 21.95554215 | F163: =(SUMPRODUCT(F122:F123,F53:F54)+SUMPRODUCT(F128:F129,F60:F61))*F116/10^6 -> 20.66043468 | G163: =(SUMPRODUCT(G122:G123,G53:G54)+SUMPRODUCT(G128:G129,G60:G61))*G116/10^6 -> 18.61528744
A164: Revenue requirement - Conventional | C164: =C39 -> 23.59709522 | D164: =D39 -> 22.95282167 | E164: 21.95554215 | F164: 20.66043468 | G164: 18.61528744
A165: Check | C165: =C163-C164 -> 0 | D165: =D163-D164 -> 0 | E165: 0 | F165: 0 | G165: 0
A166: Unsmoothed Prices X Volumes - LED | C166: =(SUMPRODUCT(C124:C125,C55:C56)+SUMPRODUCT(C130:C131,C62:C63))*C116/10^6 -> 0.9994713726 | D166: =(SUMPRODUCT(D124:D125,D55:D56)+SUMPRODUCT(D130:D131,D62:D63))*D116/10^6 -> 1.835338792 | E166: =(SUMPRODUCT(E124:E125,E55:E56)+SUMPRODUCT(E130:E131,E62:E63))*E116/10^6 -> 2.867693159 | F166: =(SUMPRODUCT(F124:F125,F55:F56)+SUMPRODUCT(F130:F131,F62:F63))*F116/10^6 -> 4.111027354 | G166: =(SUMPRODUCT(G124:G125,G55:G56)+SUMPRODUCT(G130:G131,G62:G63))*G116/10^6 -> 5.499821057
A167: Revenue requirement - LED | C167: =C40 -> 0.9994713726 | D167: =D40 -> 1.835338792 | E167: 2.867693159 | F167: 4.111027354 | G167: 5.499821057
A168: Check | C168: =C166-C167 -> 0 | D168: =D166-D167 -> 0 | E168: =E166-E167 -> 0 | F168: =F166-F167 -> 0 | G168: =G166-G167 -> 0

Sheet Output Tables
A1: Public Lighting Prices ($ Nominal) | B1: 2020-21 | D1: 2021-22 | F1: 2022-23 | H1: 2023-24 | J1: 2024-25 | M1: LED Vs CON Prices | O1: 2019-20 | P1: =B1 -> 2020-21 | S1: Price Movement | W1: 2020-21 Annual Prices
B2: Conventional | C2: LED | D2: Conventional | E2: LED | F2: Conventional | G2: LED | H2: Conventional | I2: LED | J2: Conventional | K2: LED | O2: All Lights | P2: CON | Q2: LED | R2: Average | S2: =P2 -> CON | T2: =Q2 -> LED | U2: Average | W2: =B2 -> Conventional | X2: =C2 -> LED
A3: NPL1 (Energex Owned & Operated)
A4: Major | B4: =ROUND('Public Lighting Pricing'!C136,5) -> 0.90137 | C4: =ROUND('Public Lighting Pricing'!C138,5) -> 0.32579 | D4: =ROUND('Public Lighting Pricing'!D136,5) -> 0.92346 | E4: =ROUND('Public Lighting Pricing'!D138,5) -> 0.33377 | F4: =ROUND('Public Lighting Pricing'!E136,5) -> 0.94608 | G4: =ROUND('Public Lighting Pricing'!E138,5) -> 0.34195 | H4: =ROUND('Public Lighting Pricing'!F136,5) -> 0.96926 | I4: =ROUND('Public Lighting Pricing'!F138,5) -> 0.35033 | J4: =ROUND('Public Lighting Pricing'!G136,5) -> 0.993 | K4: =ROUND('Public Lighting Pricing'!G138,5) -> 0.35891 | M4: =C4/B4 -> 0.3614386989 | O4: 1.309660271 | P4: =B4 -> 0.90137 | Q4: =C4 -> 0.32579 | R4: =(B4*'Public Lighting Pricing'!C$53+C4*'Public Lighting Pricing'!C$55)/SUM('Public Lighting Pricing'!C$53,'Public Lighting Pricing'!C$55) -> 0.874539962 | S4: =P4/$O4-1 -> -0.311752811 | T4: =Q4/$O4-1 -> -0.7512408315 | U4: -0.3322390688 | W4: =B4*'Public Lighting Pricing'!$C$116 -> 329.00005 | X4: =C4*'Public Lighting Pricing'!$C$116 -> 118.91335
A5: Minor | B5: =ROUND('Public Lighting Pricing'!C137,5) -> 0.53513 | C5: =ROUND('Public Lighting Pricing'!C139,5) -> 0.20242 | D5: =ROUND('Public Lighting Pricing'!D137,5) -> 0.54824 | E5: =ROUND('Public Lighting Pricing'!D139,5) -> 0.20738 | F5: =ROUND('Public Lighting Pricing'!E137,5) -> 0.56167 | G5: =ROUND('Public Lighting Pricing'!E139,5) -> 0.21246 | H5: =ROUND('Public Lighting Pricing'!F137,5) -> 0.57543 | I5: =ROUND('Public Lighting Pricing'!F139,5) -> 0.21766 | J5: =ROUND('Public Lighting Pricing'!G137,5) -> 0.58953 | K5: =ROUND('Public Lighting Pricing'!G139,5) -> 0.223 | M5: =C5/B5 -> 0.3782632258 | O5: 0.7802790487 | P5: =B5 -> 0.53513 | Q5: =C5 -> 0.20242 | R5: =(B5*'Public Lighting Pricing'!C$54+C5*'Public Lighting Pricing'!C$56)/SUM('Public Lighting Pricing'!C$54,'Public Lighting Pricing'!C$56) -> 0.5201509912 | S5: =P5/$O5-1 -> -0.3141812523 | T5: =Q5/$O5-1 -> -0.7405799882 | U5: =R5/$O5-1 -> -0.3333782419 | W5: =B5*'Public Lighting Pricing'!$C$116 -> 195.32245 | X5: =C5*'Public Lighting Pricing'!$C$116 -> 73.8833
A6: NPL2 (Gifted & Energex Operated)
A7: Major | B7: =ROUND('Public Lighting Pricing'!C142,5) -> 0.34738 | C7: =ROUND('Public Lighting Pricing'!C144,5) -> 0.201 | D7: =ROUND('Public Lighting Pricing'!D142,5) -> 0.35589 | E7: =ROUND('Public Lighting Pricing'!D144,5) -> 0.20592 | F7: =ROUND('Public Lighting Pricing'!E142,5) -> 0.36461 | G7: =ROUND('Public Lighting Pricing'!E144,5) -> 0.21097 | H7: =ROUND('Public Lighting Pricing'!F142,5) -> 0.37354 | I7: =ROUND('Public Lighting Pricing'!F144,5) -> 0.21613 | J7: =ROUND('Public Lighting Pricing'!G142,5) -> 0.38269 | K7: =ROUND('Public Lighting Pricing'!G144,5) -> 0.22143 | M7: =C7/B7 -> 0.5786170764 | O7: 0.5288705753 | P7: =B7 -> 0.34738 | Q7: =C7 -> 0.201 | R7: =(B7*'Public Lighting Pricing'!C$60+C7*'Public Lighting Pricing'!C$62)/SUM('Public Lighting Pricing'!C$60,'Public Lighting Pricing'!C$62) -> 0.3395072185 | S7: =P7/$O7-1 -> -0.3431663318 | T7: =Q7/$O7-1 -> -0.6199448232 | U7: =R7/$O7-1 -> -0.3580523585 | W7: =B7*'Public Lighting Pricing'!$C$116 -> 126.7937 | X7: =C7*'Public Lighting Pricing'!$C$116 -> 73.365
A8: Minor | B8: =ROUND('Public Lighting Pricing'!C143,5) -> 0.22736 | C8: =ROUND('Public Lighting Pricing'!C145,5) -> 0.13309 | D8: =ROUND('Public Lighting Pricing'!D143,5) -> 0.23293 | E8: =ROUND('Public Lighting Pricing'!D145,5) -> 0.13635 | F8: =ROUND('Public Lighting Pricing'!E143,5) -> 0.23863 | G8: =ROUND('Public Lighting Pricing'!E145,5) -> 0.13969 | H8: =ROUND('Public Lighting Pricing'!F143,5) -> 0.24448 | I8: =ROUND('Public Lighting Pricing'!F145,5) -> 0.14311 | J8: =ROUND('Public Lighting Pricing'!G143,5) -> 0.25047 | K8: =ROUND('Public Lighting Pricing'!G145,5) -> 0.14662 | M8: =C8/B8 -> 0.5853712175 | O8: 0.3464526212 | P8: =B8 -> 0.22736 | Q8: =C8 -> 0.13309 | R8: =(B8*'Public Lighting Pricing'!C$61+C8*'Public Lighting Pricing'!C$63)/SUM('Public Lighting Pricing'!C$61,'Public Lighting Pricing'!C$63) -> 0.222675131 | S8: =P8/$O8-1 -> -0.343748651 | T8: -0.6158493489 | U8: -0.3572710454 | W8: =B8*'Public Lighting Pricing'!$C$116 -> 82.9864 | X8: =C8*'Public Lighting Pricing'!$C$116 -> 48.57785
A9: NPL4
A10: Major | C10: =(C4-C7)*PLAB_NPL4+C7*0.9 -> 0.268253 | E10: =ROUND(C10*(1-'Input Data'!$C$92)*(1+'Input Data'!$C$90),5) -> 0.27482 | G10: =ROUND(E10*(1-'Input Data'!$C$92)*(1+'Input Data'!$C$90),5) -> 0.28155 | I10: =ROUND(G10*(1-'Input Data'!$C$92)*(1+'Input Data'!$C$90),5) -> 0.28845 | K10: =ROUND(I10*(1-'Input Data'!$C$92)*(1+'Input Data'!$C$90),5) -> 0.29552 | O10: =(O4*SUM('Public Lighting Pricing'!C$53,'Public Lighting Pricing'!C$55)+O5*SUM('Public Lighting Pricing'!C$54,'Public Lighting Pricing'!C$56)+O7*SUM('Public Lighting Pricing'!C$60,'Public Lighting Pricing'!C$62)+O8*SUM('Public Lighting Pricing'!C$61,'Public Lighting Pricing'!C$63))*'Public Lighting Pricing'!C$116/10^6 -> 39.79473665 | P10: =(P4*'Public Lighting Pricing'!C$53+P5*'Public Lighting Pricing'!C$54+P7*'Public Lighting Pricing'!C$60+P8*'Public Lighting Pricing'!C$61)*'Public Lighting Pricing'!C$116/10^6 -> 25.81010499 | Q10: =(Q4*'Public Lighting Pricing'!C$55+Q5*'Public Lighting Pricing'!C$56+Q7*'Public Lighting Pricing'!C$62+Q8*'Public Lighting Pricing'!C$63)*'Public Lighting Pricing'!C$116/10^6 -> 0.5298670884 | R10: =SUM(P10:Q10) -> 26.33997208 | S10: Revenue | U10: =R10/O10-1 -> -0.338104124 | X10: =C10*'Public Lighting Pricing'!$C$116 -> 97.912345
A11: Minor | C11: =(C5-C8)*PLAB_NPL4+C8*0.9 -> 0.168312 | E11: =ROUND(C11*(1-'Input Data'!$C$92)*(1+'Input Data'!$C$90),5) -> 0.17244 | G11: =ROUND(E11*(1-'Input Data'!$C$92)*(1+'Input Data'!$C$90),5) -> 0.17666 | I11: =ROUND(G11*(1-'Input Data'!$C$92)*(1+'Input Data'!$C$90),5) -> 0.18099 | K11: =ROUND(I11*(1-'Input Data'!$C$92)*(1+'Input Data'!$C$90),5) -> 0.18542 | X11: =C11*'Public Lighting Pricing'!$C$116 -> 61.43388
O13: =O1 -> 2019-20 | P13: =P1 -> 2020-21 | S13: Price Movement
A14: Submission Model | B14: =B2 -> Conventional | C14: =C2 -> LED | D14: Conventional | E14: LED | F14: Conventional | G14: LED | H14: Conventional | I14: LED | J14: Conventional | K14: LED | O14: All Lights | P14: CON | Q14: LED | R14: Average | S14: =P14 -> CON | T14: =Q14 -> LED | U14: =R14 -> Average | W14: =B14 -> Conventional | X14: =C14 -> LED
A15: =A3 -> NPL1 (Energex Owned & Operated)
A16: =A4 -> Major | B16: 0.77964 | C16: 0.81542 | D16: 0.79913 | E16: 0.83581 | F16: 0.81911 | G16: 0.85671 | H16: 0.83959 | I16: 0.87813 | J16: 0.86058 | K16: 0.90008 | M16: =C16/B16 -> 1.045892976 | O16: =O4 -> 1.309660271 | P16: =B16 -> 0.77964 | Q16: =C16 -> 0.81542 | R16: =(B16*'Public Lighting Pricing'!C$53+C16*'Public Lighting Pricing'!C$55)/SUM('Public Lighting Pricing'!C$53,'Public Lighting Pricing'!C$55) -> 0.7813078459 | S16: =P16/$O16-1 -> -0.4047005797 | T16: =Q16/$O16-1 -> -0.3773805176 | U16: =R16/$O16-1 -> -0.4034270846 | W16: =B16*'Public Lighting Pricing'!$C$116 -> 284.5686 | X16: =C16*'Public Lighting Pricing'!$C$116 -> 297.6283
A17: Minor | B17: 0.47889 | C17: 0.49222 | D17: 0.49086 | E17: 0.50453 | F17: 0.50313 | G17: 0.51714 | H17: 0.51571 | I17: 0.53007 | J17: 0.5286 | K17: 0.54332 | M17: =C17/B17 -> 1.027835202 | O17: =O5 -> 0.7802790487 | P17: =B17 -> 0.47889 | Q17: =C17 -> 0.49222 | R17: =(B17*'Public Lighting Pricing'!C$54+C17*'Public Lighting Pricing'!C$56)/SUM('Public Lighting Pricing'!C$54,'Public Lighting Pricing'!C$56) -> 0.4794901328 | S17: =P17/$O17-1 -> -0.3862580306 | T17: -0.3691743988 | U17: -0.3854889047 | W17: =B17*'Public Lighting Pricing'!$C$116 -> 174.79485 | X17: =C17*'Public Lighting Pricing'!$C$116 -> 179.6603
A18: NPL2 (Gifted & Energex Operated)
A19: Major | B19: 0.44861 | C19: 0.39918 | D19: 0.45983 | E19: 0.40916 | F19: 0.47133 | G19: 0.41939 | H19: 0.48311 | I19: 0.42987 | J19: 0.49519 | K19: 0.44062 | M19: =C19/B19 -> 0.889815207 | O19: =O7 -> 0.5288705753 | P19: =B19 -> 0.44861 | Q19: =C19 -> 0.39918 | R19: =(B19*'Public Lighting Pricing'!C$60+C19*'Public Lighting Pricing'!C$62)/SUM('Public Lighting Pricing'!C$60,'Public Lighting Pricing'!C$62) -> 0.4459514975 | S19: =P19/$O19-1 -> -0.1517584435 | T19: =Q19/$O19-1 -> -0.2452217638 | U19: =R19/$O19-1 -> -0.1567851978 | W19: =B19*'Public Lighting Pricing'!$C$116 -> 163.74265 | X19: =C19*'Public Lighting Pricing'!$C$116 -> 145.7007
A20: Minor | B20: 0.295 | C20: 0.26097 | D20: 0.30238 | E20: 0.26749 | F20: 0.30994 | G20: 0.27418 | H20: 0.31769 | I20: 0.28103 | J20: 0.32563 | K20: 0.28806 | M20: =C20/B20 -> 0.8846440678 | O20: 0.3464526212 | P20: =B20 -> 0.295 | Q20: =C20 -> 0.26097 | R20: =(B20*'Public Lighting Pricing'!C$61+C20*'Public Lighting Pricing'!C$63)/SUM('Public Lighting Pricing'!C$61,'Public Lighting Pricing'!C$63) -> 0.2933088354 | S20: =P20/$O20-1 -> -0.1485127201 | T20: -0.246736829 | U20: -0.1533940936 | W20: =B20*'Public Lighting Pricing'!$C$116 -> 107.675 | X20: =C20*'Public Lighting Pricing'!$C$116 -> 95.25405
A21: NPL4
A22: Major | C22: 0.71 | E22: 0.72775 | G22: 0.74594 | I22: 0.76459 | K22: 0.7837 | O22: =(O16*SUM('Public Lighting Pricing'!C$53,'Public Lighting Pricing'!C$55)+O17*SUM('Public Lighting Pricing'!C$54,'Public Lighting Pricing'!C$56)+O19*SUM('Public Lighting Pricing'!C$60,'Public Lighting Pricing'!C$62)+O20*SUM('Public Lighting Pricing'!C$61,'Public Lighting Pricing'!C$63))*'Public Lighting Pricing'!C$116/10^6 -> 39.79473665 | P22: =(P16*'Public Lighting Pricing'!C$53+P17*'Public Lighting Pricing'!C$54+P19*'Public Lighting Pricing'!C$60+P20*'Public Lighting Pricing'!C$61)*'Public Lighting Pricing'!C$116/10^6 -> 24.93881251 | Q22: =(Q16*'Public Lighting Pricing'!C$55+Q17*'Public Lighting Pricing'!C$56+Q19*'Public Lighting Pricing'!C$62+Q20*'Public Lighting Pricing'!C$63)*'Public Lighting Pricing'!C$116/10^6 -> 1.223185492 | R22: =SUM(P22:Q22) -> 26.161998 | S22: Revenue | U22: =R22/O22-1 -> -0.3425764258 | X22: =C22*'Public Lighting Pricing'!$C$116 -> 259.15
A23: Minor | C23: 0.44 | E23: 0.451 | G23: 0.46228 | I23: 0.47384 | K23: 0.48569 | X23: =C23*'Public Lighting Pricing'!$C$116 -> 160.6
A26: Difference $ | B26: =B14 -> Conventional | C26: =C14 -> LED | D26: Conventional | E26: LED | F26: Conventional | G26: LED | H26: Conventional | I26: LED | J26: Conventional | K26: LED
A27: =A15 -> NPL1 (Energex Owned & Operated)
A28: =A16 -> Major | B28: =B4-B16 -> 0.12173 | C28: =C4-C16 -> -0.48963 | D28: 0.12433 | E28: -0.50204 | F28: 0.12697 | G28: -0.51476 | H28: 0.12967 | I28: -0.5278 | J28: 0.13242 | K28: -0.54117
A29: Minor | B29: =B5-B17 -> 0.05624 | C29: -0.2898 | D29: 0.05738 | E29: -0.29715 | F29: 0.05854 | G29: -0.30468 | H29: 0.05972 | I29: -0.31241 | J29: 0.06093 | K29: -0.32032
A30: NPL2 (Gifted & Energex Operated)
A31: Major | B31: =B7-B19 -> -0.10123 | C31: =C7-C19 -> -0.19818 | D31: -0.10394 | E31: -0.20324 | F31: -0.10672 | G31: -0.20842 | H31: -0.10957 | I31: -0.21374 | J31: -0.1125 | K31: -0.21919
A32: Minor | B32: =B8-B20 -> -0.06764 | C32: -0.12788 | D32: -0.06945 | E32: -0.13114 | F32: -0.07131 | G32: -0.13449 | H32: -0.07321 | I32: -0.13792 | J32: -0.07516 | K32: -0.14144
A33: NPL4
A34: Major | C34: =C10-C22 -> -0.441747 | E34: -0.45293 | G34: =G10-G22 -> -0.46439 | I34: =I10-I22 -> -0.47614 | K34: =K10-K22 -> -0.48818
A35: Minor | C35: =C11-C23 -> -0.271688 | E35: -0.27856 | G35: =G11-G23 -> -0.28562 | I35: =I11-I23 -> -0.29285 | K35: =K11-K23 -> -0.30027
A38: Difference % | B38: =B26 -> Conventional | C38: =C26 -> LED | D38: Conventional | E38: LED | F38: Conventional | G38: LED | H38: Conventional | I38: LED | J38: Conventional | K38: LED
A39: =A27 -> NPL1 (Energex Owned & Operated)
A40: =A28 -> Major | B40: =B28/B16 -> 0.1561361654 | C40: =C28/C16 -> -0.6004635648 | D40: 0.1555816951 | E40: -0.6006628301 | F40: 0.1550097057 | G40: -0.600856766 | H40: 0.1544444312 | I40: -0.6010499584 | J40: 0.1538729694 | K40: -0.6012465559
A41: Minor | B41: =B29/B17 -> 0.1174382426 | C41: -0.5887611231 | D41: 0.1168968749 | E41: -0.5889639863 | F41: 0.1163516387 | G41: -0.589163476 | H41: 0.1158015164 | I41: -0.5893749882 | J41: 0.1152667423 | K41: -0.58956048
A42: =A18 -> NPL2 (Gifted & Energex Operated)
A43: =A19 -> Major | B43: =B31/B19 -> -0.2256525713 | C43: -0.4964677589 | D43: -0.2260400583 | E43: -0.4967249976 | F43: -0.2264231006 | G43: -0.4969598703 | H43: -0.2268013496 | I43: -0.4972200898 | J43: -0.2271855247 | K43: -0.4974581272
A44: Minor | B44: =B32/B20 -> -0.2292881356 | C44: -0.4900180097 | D44: -0.2296778887 | E44: -0.4902613182 | F44: -0.2300767891 | G44: -0.4905171785 | H44: -0.2304447732 | I44: -0.4907661104 | J44: -0.2308141142 | K44: -0.4910088176
A45: =A21 -> NPL4
A46: =A22 -> Major | C46: =C34/C22 -> -0.6221788732 | E46: -0.6223703195 | G46: =G34/G22 -> -0.622556774 | I46: =I34/I22 -> -0.6227389843 | K46: =K34/K22 -> -0.6229169325
A47: Minor | C47: =C35/C23 -> -0.6174727273 | E47: -0.6176496674 | G47: =G35/G23 -> -0.6178506533 | I47: =I35/I23 -> -0.6180356238 | K47: =K35/K23 -> -0.6182338529
